bitfinex-derivatives/quotes_ETHF0:USTF0_20250616
["timestamp","ask_amount","ask_price","bid_price","bid_amount"]
[1750066361597,0.76169,2625.5,2625.4,0.76171]
[1750066361795,30.91319629,2625.5,2625.4,0.76171]
[1750066361990,32.17469629,2625.5,2625.4,0.76171]
[1750066362197,31.41300629,2625.5,2625.4,0.76171]
[1750066362498,30.15150629,2625.5,2625.4,0.76171]
[1750066362688,0.90550629,2625.5,2625.4,0.76171]
[1750066362890,29.246,2625.5,2625.4,3.96951]
[1750066364104,30.00769,2625.5,2625.4,0.76171]
[1750066364305,0.76175,2625.4,2625.3,0.76172]
[1750066364499,3.37576652,2625.4,2625.3,0.76172]
[1750066366313,4.28033932,2625.4,2625.3,0.76172]
[1750066366492,0.76178,2625.2,2625.1,4.4622]
[1750066366804,0.76181,2625.1,2625.0,0.00571059]
[1750066366995,7.99551,2625.1,2625.0,0.00571059]
[1750066367396,8.89963429,2625.1,2625.0,0.00571059]
[1750066367699,0.90412429,2625.1,2625.0,0.76755059]
[1750066367904,30.91193429,2625.1,2625.0,0.76755059]
[1750066368302,30.00781,2625.1,2625.0,1.39005059]
[1750066369101,29.246,2625.1,2625.0,1.39005059]
[1750066369500,30.00781,2625.1,2625.0,1.39005059]
[1750066369999,0.76181,2625.1,2625.0,1.39005059]
[1750066370205,24.00281,2625.1,2625.0,1.39005059]
[1750066371807,26.61682652,2625.1,2625.0,0.76755059]
[1750066372001,27.87932652,2625.1,2625.0,0.00571059]
[1750066372201,32.62082652,2625.1,2625.0,0.76755059]
[1750066374309,32.62082652,2625.1,2625.0,0.00571059]
[1750066375508,32.62082652,2625.1,2625.0,0.76755059]
[1750066375709,32.62082652,2625.1,2625.0,0.00571059]
[1750066376911,32.62082652,2625.1,2625.0,0.76755059]
[1750066377104,32.62082652,2625.1,2625.0,0.00571059]
[1750066378715,32.62082652,2625.1,2625.0,0.76755059]
[1750066378908,6.76481,2625.1,2625.0,0.76755059]
[1750066379115,30.00781,2625.1,2625.0,0.76755059]
[1750066379411,30.00781,2625.1,2625.0,0.00571059]
[1750066379608,30.00781,2625.1,2625.0,0.76755059]
[1750066380415,30.00781,2625.1,2625.0,0.00571059]
[1750066380716,32.62182652,2625.1,2625.0,0.00571059]
[1750066384215,33.92662652,2625.1,2625.0,0.00571059]
[1750066385617,31.31261,2625.1,2625.0,0.00571059]
[1750066385818,33.92662652,2625.1,2625.0,0.00571059]
[1750066388314,34.83037082,2625.1,2625.0,0.00571059]
[1750066388920,0.76195,2624.6,2624.5,1.2695]
[1750066389123,24.00595,2624.6,2624.5,0.651]
[1750066389309,24.00595,2624.6,2624.5,1.41298]
[1750066389617,24.00595,2624.6,2624.5,0.651]
[1750066390519,0.76201,2624.4,2624.3,0.00571059]
[1750066390823,0.76201,2624.4,2624.3,0.64941059]
[1750066391320,0.76201,2624.4,2624.3,1.41143059]
[1750066391520,0.76201,2624.4,2624.3,0.64941059]
[1750066391715,24.00501,2624.4,2624.3,0.00571059]
[1750066391916,25.58322795,2624.4,2624.3,0.00571059]
[1750066392123,26.48742692,2624.4,2624.3,0.00571059]
[1750066394415,31.48742692,2624.4,2624.3,0.00571059]
[1750066395326,0.76219,2623.8,2623.7,0.6438]
[1750066395627,0.76219,2623.8,2623.7,1.40602]
[1750066395628,26.62320652,2623.8,2623.7,1.40602]
[1750066395823,24.00919,2623.8,2623.7,1.40602]
[1750066396023,30.01419,2623.8,2623.7,0.6438]
[1750066396224,32.62820652,2623.8,2623.7,0.6438]
[1750066398227,32.62820652,2623.8,2623.7,1.40602]
[1750066405438,32.62820652,2623.8,2623.7,0.6438]
[1750066405635,32.62820652,2623.8,2623.7,1.40602]
[1750066409946,30.01419,2623.8,2623.7,1.40602]
[1750066410643,30.01419,2623.8,2623.7,0.6438]
[1750066410848,30.01419,2623.8,2623.7,1.40602]
[1750066413649,32.62820652,2623.8,2623.7,1.40602]
[1750066418248,32.62820652,2623.8,2623.7,0.6438]
[1750066419255,30.01419,2623.8,2623.7,1.40602]
[1750066419644,32.62820652,2623.8,2623.7,0.6438]
[1750066419843,33.53550869,2623.8,2623.7,0.6438]
[1750066420154,33.53550869,2623.8,2623.7,1.40602]
[1750066421553,33.53550869,2623.8,2623.7,0.6438]
[1750066422957,0.76222,2623.7,2623.6,3.2078]
[1750066423152,1.66952217,2623.7,2623.6,3.2078]
[1750066423451,0.76224,2623.6,2623.5,0.00571059]
[1750066423657,28.76895869,2623.6,2623.5,0.00571059]
[1750066428552,26.15494217,2623.6,2623.5,0.00571059]
[1750066428754,8.90994217,2623.6,2623.5,0.00571059]
[1750066428961,32.16194217,2623.6,2623.5,0.00571059]
[1750066429164,2.90394217,2623.6,2623.5,0.00571059]
[1750066429459,32.16194217,2623.6,2623.5,0.00571059]
[1750066432461,34.77595869,2623.6,2623.5,0.00571059]
[1750066436062,0.76239,2623.1,2623.0,0.6352]
[1750066436262,32.63240652,2623.1,2623.0,0.6352]
[1750066437158,0.76245,2622.9,2622.8,0.00571059]
[1750066437362,0.76245,2622.9,2622.3,0.7626]
[1750066437363,0.76262,2622.4,2622.3,0.7626]
[1750066437560,24.01462,2622.4,2622.3,0.7626]
[1750066438258,0.76262,2622.3,2622.2,2.00333]
[1750066438667,23.252,2622.4,2622.2,2.00333]
[1750066438668,24.01461,2622.4,2622.3,0.76262]
[1750066438863,24.01461,2622.4,2622.3,1.98782]
[1750066439367,0.76258,2622.5,2622.4,0.76259]
[1750066439566,0.76258,2622.5,2622.4,1.98779]
[1750066439766,30.01858,2622.5,2622.4,1.98779]
[1750066440361,0.76265,2622.2,2622.1,0.00380704]
[1750066440563,34.68592255,2622.2,2621.6,0.76281]
[1750066440767,28.2192,2622.4,2621.7,0.6377]
[1750066440768,4.11506603,2622.1,2621.7,0.6377]
[1750066440965,30.02071,2622.0,2621.9,3.2078]
[1750066441266,23.059,2622.4,2621.9,3.2078]
[1750066441563,0.76269,2622.1,2622.0,1.9258]
[1750066441967,24.01669,2622.1,2622.0,1.9258]
[1750066442370,23.254,2622.1,2622.0,2.68851]
[1750066442566,0.76262,2622.3,2622.2,0.76264]
[1750066442769,30.02162,2622.3,2622.2,3.97044]
[1750066442964,23.8216,2622.4,2622.3,0.76262]
[1750066443170,53.0836,2622.4,2622.3,0.76262]
[1750066443474,52.321,2622.4,2622.3,2.05132]
[1750066443972,5.82181652,2622.8,2622.3,2.05132]
[1750066443973,0.76253,2622.7,2622.6,0.76252]
[1750066444272,6.76753,2622.7,2622.6,0.76252]
[1750066444861,0.30410394,2623.1,2623.0,0.76242]
[1750066444862,6.005,2623.1,2623.0,0.76242]
[1750066445079,6.005,2623.1,2623.0,6.58423652]
[1750066445968,0.00571059,2623.3,2623.2,0.76236]
[1750066446169,0.00571059,2623.3,2623.2,8.37637652]
[1750066448867,0.00571059,2623.3,2623.2,5.76236]
[1750066449270,0.00571059,2623.3,2623.2,0.76236]
[1750066451480,0.00571059,2623.3,2623.2,3.37637652]
[1750066452081,0.00571059,2623.3,2623.2,0.76236]
[1750066453077,0.76804059,2623.3,2623.1,2.64987]
[1750066453279,0.76804059,2623.3,2623.2,0.76236]
[1750066454076,29.29171059,2623.3,2622.7,3.2078]
[1750066454270,0.76239,2623.1,2623.0,3.9702]
[1750066454473,6.76638,2623.2,2623.0,5.2657]
[1750066454669,0.76238,2623.2,2623.0,4.5033]
[1750066454973,6.004,2623.2,2623.1,0.76236]
[1750066455478,6.76636,2623.2,2623.1,0.6768]
[1750066455679,6.76636,2623.2,2623.1,1.43919]
[1750066455880,6.76636,2623.2,2623.1,0.6768]
[1750066456575,6.76636,2623.2,2623.1,1.43919]
[1750066456881,0.76236,2623.2,2623.1,1.43919]
[1750066457181,0.76236,2623.2,2623.1,1.43916]
[1750066459276,0.76805059,2623.3,2623.2,0.76236]
[1750066460780,0.00571059,2623.3,2623.2,0.76236]
[1750066461081,0.00571059,2623.3,2623.2,4.63697652]
[1750066462978,0.76804059,2623.3,2623.2,4.63697652]
[1750066463174,0.00571059,2623.3,2623.2,4.63697652]
[1750066464377,0.76804059,2623.3,2623.2,2.02296]
[1750066464685,0.00571059,2623.3,2623.2,2.02296]
[1750066465985,0.00571059,2623.3,2623.2,4.63697652]
[1750066466978,0.7622,2623.9,2623.2,8.87461652]
[1750066467282,6.8212,2623.9,2623.8,0.76216]
[1750066468886,0.76222,2623.8,2623.7,0.7622]
[1750066469286,0.76222,2623.7,2623.6,0.76794059]
[1750066470087,1.2964,2623.8,2623.6,0.76794059]
[1750066470088,1.2964,2623.8,2623.7,0.76222]
[1750066470394,8.11759,2623.8,2623.7,0.76222]
[1750066471787,0.76222,2623.7,2623.6,0.00571059]
[1750066471990,2.01332,2623.7,2623.6,0.76795059]
[1750066472183,1.2511,2623.7,2623.6,0.76795059]
[1750066472492,24.12119,2623.9,2623.8,0.76216]
[1750066472691,31.43129,2623.9,2623.8,0.76216]
[1750066472892,8.07229,2623.9,2623.8,0.76216]
[1750066474092,2.01329,2623.9,2623.8,0.76216]
[1750066474288,6.82119,2623.9,2623.8,0.76216]
[1750066474493,6.059,2623.9,2623.8,0.76216]
[1750066474692,6.059,2623.9,2623.8,1.39966]
[1750066475193,47.0665,2624.0,2623.8,0.6375]
[1750066475194,23.7125,2624.0,2623.8,0.6375]
[1750066475397,6.059,2624.0,2623.9,3.37617652]
[1750066475589,6.82113,2624.0,2623.9,0.76216]
[1750066478199,8.14303,2624.0,2623.9,0.76216]
[1750066479192,0.76216,2623.9,2623.8,0.76216]
[1750066479498,2.08406,2623.9,2623.8,0.76216]
[1750066480200,4.69807652,2623.9,2623.8,0.76216]
[1750066480896,0.76222,2623.8,2623.7,0.76219]
[1750066481293,0.76222,2623.7,2623.6,0.76793059]
[1750066481493,2.09082,2623.7,2623.6,0.76793059]
[1750066484495,1.3286,2623.7,2623.6,0.76793059]
[1750066484697,6.82016,2624.0,2623.9,0.76213]
[1750066484900,0.76222,2623.8,2623.7,0.6252]
[1750066485102,0.76222,2623.8,2623.7,0.76217]
[1750066485497,3.37623652,2623.8,2623.7,0.76217]
[1750066485699,0.76221,2623.7,2623.6,0.76793059]
[1750066486010,2.65531,2623.7,2623.6,0.76793059]
[1750066489006,2.65531,2623.7,2623.6,0.00571059]
[1750066490011,2.65531,2623.7,2623.6,0.76795059]
[1750066493210,5.26932652,2623.7,2623.6,0.00571059]
[1750066493604,0.76227,2623.5,2623.4,0.6252]
[1750066493813,0.76233,2623.4,2623.3,0.76231]
[1750066495811,0.76233,2623.3,2623.2,3.97016]
[1750066498006,0.76233,2623.3,2623.2,3.2078]
[1750066498310,0.76242,2623.0,2622.9,3.97022]
[1750066502309,0.76237,2623.3,2623.2,0.76232]
[1750066502515,6.79937,2623.3,2623.2,0.76232]
[1750066503216,6.79937,2623.3,2623.2,1.38692]
[1750066505320,0.76236,2623.2,2623.1,0.6334]
[1750066506222,0.76236,2623.2,2623.1,1.39579]
[1750066506714,6.79936,2623.2,2623.1,1.39579]
[1750066510029,0.76236,2623.2,2623.1,1.39579]
[1750066510230,6.79936,2623.2,2623.1,1.39579]
[1750066510526,0.76236,2623.2,2623.1,1.39579]
[1750066510727,6.79936,2623.2,2623.1,1.39579]
[1750066511412,0.76236,2623.2,2623.1,1.39579]
[1750066511619,6.79936,2623.2,2623.1,1.39579]
[1750066513731,0.76242,2623.0,2622.9,5.4839351]
[1750066514030,0.76242,2623.0,2622.6,3.8636]
[1750066514031,0.76251,2622.7,2622.6,3.8636]
[1750066514230,0.76251,2622.7,2622.6,4.62613]
[1750066514616,1.9526,2623.1,2622.6,4.62613]
[1750066514617,1.90601,2623.1,2622.6,3.8636]
[1750066514819,6.037,2623.0,2622.8,0.76245]
[1750066515016,0.76245,2622.9,2622.8,0.76245]
[1750066515429,0.76248,2622.8,2622.7,2.09278]
[1750066517825,0.76248,2622.8,2622.7,4.70679652]
[1750066518230,0.76247,2622.9,2622.8,0.76243]
[1750066518423,0.76247,2622.9,2622.8,2.06383]
[1750066518923,0.76244,2623.0,2622.9,0.76242]
[1750066520131,0.76245,2622.9,2622.8,2.06385]
[1750066523537,0.76245,2622.9,2622.8,0.76245]
[1750066534443,3.37645652,2623.0,2622.9,0.76245]
[1750066534644,4.29667487,2623.0,2622.9,0.76245]
[1750066536840,0.92021835,2623.0,2622.9,0.76245]
[1750066537141,6.033,2623.1,2623.0,0.76242]
[1750066537643,6.79539,2623.1,2623.0,0.76242]
[1750066538644,6.033,2623.1,2623.0,0.76242]
[1750066539444,6.95388286,2623.1,2623.0,0.76242]
[1750066540734,0.92088286,2623.1,2623.0,0.76242]
[1750066540941,6.79535,2623.3,2623.2,0.76236]
[1750066541142,7.71650062,2623.3,2623.2,0.76236]
[1750066542242,0.92115062,2623.3,2623.2,3.97016]
[1750066542435,6.033,2623.6,2623.5,0.76227]
[1750066542639,6.033,2623.6,2623.5,3.97007]
[1750066547752,6.033,2623.6,2623.5,0.76227]
[1750066548851,6.79524,2623.6,2623.5,0.76227]
[1750066549451,6.033,2623.6,2623.5,0.82964406]
[1750066549651,6.79524,2623.6,2623.5,0.82964406]
[1750066549851,6.033,2623.6,2623.5,0.82964406]
[1750066550452,6.033,2623.6,2623.5,0.76227]
[1750066550856,29.8472,2623.8,2623.7,0.76221]
[1750066551250,6.7942,2623.8,2623.7,0.76221]
[1750066553653,0.76224,2623.6,2623.5,0.06737406]
[1750066553859,0.76239,2623.1,2623.0,3.2078]
[1750066554160,0.76242,2623.0,2622.9,0.76242]
[1750066554357,5.24633652,2623.0,2622.9,0.76242]
[1750066554858,0.76247,2622.9,2622.8,0.76246]
[1750066555054,3.37648652,2622.9,2622.8,0.76246]
[1750066556061,2.61401652,2622.9,2622.8,0.76246]
[1750066558363,3.37646652,2622.9,2622.8,0.76246]
[1750066561462,2.61401652,2622.9,2622.8,0.76246]
[1750066562367,3.37646652,2622.9,2622.8,0.76246]
[1750066562963,2.61401652,2622.9,2622.6,4.4429]
[1750066563165,3.37652652,2622.8,2622.7,0.76248]
[1750066563871,25.87501652,2622.8,2622.5,2.28402965]
[1750066564167,0.76256,2622.5,2622.4,3.04660965]
[1750066565058,0.76256,2622.5,2622.4,0.76258]
[1750066565256,0.76259,2622.4,2622.3,3.854]
[1750066565460,0.76268,2622.2,2622.1,0.76267]
[1750066565666,0.76268,2622.2,2622.0,0.663]
[1750066565667,0.76268,2622.1,2622.0,1.42569]
[1750066565861,0.76271,2622.0,2621.9,7.63093022]
[1750066566066,3.37672652,2622.0,2621.9,7.63093022]
[1750066566264,3.37672652,2622.0,2621.9,3.79683022]
[1750066568581,3.37672652,2622.0,2621.9,4.55957022]
[1750066568784,3.37672652,2622.0,2621.9,3.79683022]
[1750066569083,3.37672652,2622.0,2621.9,4.55957022]
[1750066569383,3.37672652,2622.0,2621.9,3.79683022]
[1750066569580,2.61401652,2622.0,2621.9,4.55957022]
[1750066569779,2.0444,2622.1,2622.0,0.76271]
[1750066569978,6.009,2622.0,2621.9,4.55955022]
[1750066570179,6.77171,2622.0,2621.9,4.55955022]
[1750066570577,6.77171,2622.0,2621.9,3.79683022]
[1750066571189,0.76261,2622.4,2622.3,0.76259]
[1750066571379,6.77161,2622.4,2622.3,0.76259]
[1750066571581,0.76266,2622.3,2622.2,0.76263]
[1750066572088,0.76268,2622.2,2622.1,0.76266]
[1750066572478,3.2078,2622.5,2622.2,1.90662]
[1750066572684,29.85138652,2622.5,2622.4,0.76259]
[1750066572883,35.86138652,2622.5,2622.4,0.76259]
[1750066573387,0.76263,2622.4,2622.3,0.7626]
[1750066573688,2.10693,2622.4,2622.3,0.7626]
[1750066574087,2.41770373,2622.4,2622.3,0.7626]
[1750066574389,2.10693,2622.4,2622.3,0.7626]
[1750066574689,1.3443,2622.4,2622.3,0.7626]
[1750066575187,24.6123,2622.4,2622.3,0.7626]
[1750066576693,25.37489,2622.4,2622.3,0.7626]
[1750066577693,2.61401652,2622.5,2622.4,0.76259]
[1750066577995,2.61401652,2622.6,2622.5,0.76254]
[1750066578292,31.89201652,2622.6,2622.4,0.76257]
[1750066578493,0.76261,2622.5,2622.4,0.76257]
[1750066579094,2.06471,2622.5,2622.4,0.76257]
[1750066579992,2.06471,2622.5,2622.1,2.55199]
[1750066579993,0.76268,2622.1,2622.0,1.3823]
[1750066580191,0.76271,2622.0,2621.9,3.2078]
[1750066580384,2.06481,2622.0,2621.9,3.2078]
[1750066580587,2.72861,2622.0,2621.9,3.2078]
[1750066581582,0.76274,2621.9,2621.8,0.76276]
[1750066581785,3.37675652,2621.9,2621.8,0.76276]
[1750066582995,6.01,2621.9,2621.8,3.37678652]
[1750066583195,6.01,2621.9,2621.8,6.58458652]
[1750066583395,6.77274,2621.9,2621.8,0.76277]
[1750066586396,0.7628,2621.8,2621.7,0.76277]
[1750066586595,24.0318,2621.8,2621.7,0.76277]
[1750066587697,0.76276,2621.9,2621.8,0.76277]
[1750066588002,30.04275,2621.9,2621.8,0.76277]
[1750066589298,0.76275,2621.9,2621.8,0.76277]
[1750066589499,30.04275,2621.9,2621.8,0.76277]
[1750066589700,0.76268,2622.2,2622.1,0.76265]
[1750066589902,0.76273,2622.1,2622.0,0.76269]
[1750066590096,0.76273,2622.1,2622.0,1.41789]
[1750066590402,0.76273,2622.1,2622.0,0.6552]
[1750066590601,0.7628,2621.8,2621.7,0.76275]
[1750066590802,0.7628,2621.8,2621.7,1.41795]
[1750066597105,1.90662,2622.3,2621.8,1.90691]
[1750066597309,0.76259,2622.5,2622.4,0.76256]
[1750066597607,0.76256,2622.6,2622.5,0.76253]
[1750066597905,0.00571059,2622.7,2622.6,0.76253]
[1750066598108,0.00571059,2622.7,2622.6,2.06003]
[1750066599012,3.38223711,2622.7,2622.6,0.76253]
[1750066599408,0.76822059,2622.7,2622.6,0.76253]
[1750066600711,0.00571059,2622.7,2622.6,0.76253]
[1750066602211,0.00571059,2622.7,2622.6,2.04143]
[1750066607415,0.76822059,2622.7,2622.6,2.04143]
[1750066607717,0.00571059,2622.7,2622.6,2.04143]
[1750066608111,0.76822059,2622.7,2622.6,2.04143]
[1750066608616,0.00571059,2622.7,2622.6,2.04143]
[1750066609213,0.76822059,2622.7,2622.6,2.04143]
[1750066609817,0.76822059,2622.7,2622.6,0.76253]
[1750066613814,0.00571059,2622.7,2622.6,0.76253]
[1750066617226,0.76822059,2622.7,2622.6,0.76253]
[1750066617524,0.00571059,2622.7,2622.6,0.76253]
[1750066622621,0.76822059,2622.7,2622.6,0.76253]
[1750066623626,0.00571059,2622.7,2622.6,0.76253]
[1750066623925,0.76822059,2622.7,2622.6,0.76253]
[1750066624628,0.00571059,2622.7,2622.6,0.76253]
[1750066626022,0.76822059,2622.7,2622.6,0.76253]
[1750066626431,0.76256,2622.5,2622.4,0.76257]
[1750066627025,0.76256,2622.5,2622.4,3.97037]
[1750066628230,2.02666,2622.5,2622.4,3.2078]
[1750066628425,2.02666,2622.5,2622.4,3.97039]
[1750066629524,0.76256,2622.5,2622.4,3.97039]
[1750066630030,0.76256,2622.5,2622.4,3.2078]
[1750066630229,2.08016,2622.5,2622.4,3.97039]
[1750066630930,2.08016,2622.5,2622.4,0.76259]
[1750066633830,8.08916,2622.5,2622.4,0.76259]
[1750066636733,6.77156,2622.5,2622.4,0.76259]
[1750066637529,6.009,2622.5,2622.4,3.97039]
[1750066638434,6.77156,2622.5,2622.4,3.97039]
[1750066639840,6.77156,2622.5,2622.4,4.03776406]
[1750066641837,6.77156,2622.5,2622.4,3.97039]
[1750066643540,0.00571059,2622.7,2622.4,3.2078]
[1750066643742,0.76824059,2622.7,2622.5,2.61401652]
[1750066644037,0.00571059,2622.7,2622.6,1.39773]
[1750066644235,0.00571059,2622.7,2622.6,3.39173]
[1750066644429,0.00571059,2622.7,2622.6,37.89173]
[1750066644939,0.00571059,2622.7,2622.6,40.16333999]
[1750066649737,6.77041,2623.1,2623.0,0.76242]
[1750066649936,7.68207202,2623.1,2623.0,0.76242]
[1750066651741,0.00571059,2623.3,2623.2,0.76236]
[1750066651946,6.01371059,2623.3,2623.2,0.76236]
[1750066653145,0.00571059,2623.3,2623.2,3.97016]
[1750066653349,0.00571059,2623.3,2623.2,6.58417652]
[1750066656150,0.00571059,2623.3,2623.2,3.97016]
[1750066659450,6.76927,2623.6,2623.5,0.76227]
[1750066661253,0.7623,2623.5,2623.4,0.76229]
[1750066661453,0.76239,2623.1,2623.0,0.82978406]
[1750066661754,3.37640652,2623.1,2623.0,0.06737406]
[1750066662054,0.76239,2623.1,2623.0,0.06737406]
[1750066662256,2.69379,2623.1,2623.0,0.76242]
[1750066667263,0.76245,2623.0,2622.9,0.76243]
[1750066667858,2.69382,2623.1,2623.0,0.76242]
[1750066668355,2.69382,2623.1,2623.0,0.82979406]
[1750066670557,2.69382,2623.1,2623.0,0.06737406]
[1750066670762,3.60131332,2623.1,2623.0,0.06737406]
[1750066671459,3.60131332,2623.1,2622.8,0.76818059]
[1750066671460,0.76245,2622.9,2622.8,0.76818059]
[1750066671860,0.76245,2622.9,2622.8,0.00571059]
[1750066672059,2.10185,2622.9,2622.8,0.00571059]
[1750066672855,3.00940402,2622.9,2622.8,0.00571059]
[1750066674563,3.00940402,2622.9,2622.8,0.76819059]
[1750066674954,3.00940402,2622.9,2622.8,0.00571059]
[1750066675661,3.00940402,2622.9,2622.8,0.76819059]
[1750066675865,0.76245,2622.9,2622.8,0.76819059]
[1750066678170,6.76845,2622.9,2622.8,0.76819059]
[1750066680064,3.2078,2623.1,2622.8,0.00571059]
[1750066680261,9.2138,2623.1,2623.0,0.76242]
[1750066680466,9.2138,2623.1,2623.0,0.82979406]
[1750066680966,9.97619,2623.1,2623.0,0.82979406]
[1750066682165,9.2138,2623.1,2623.0,0.82979406]
[1750066682353,6.006,2623.5,2623.4,0.7623]
[1750066682864,6.76827,2623.5,2623.4,0.7623]
[1750066683169,6.006,2623.5,2623.4,0.7623]
[1750066683370,6.76827,2623.5,2623.4,0.7623]
[1750066684858,0.76236,2623.2,2623.1,2.00117]
[1750066685056,3.37637652,2623.2,2623.1,0.76237]
[1750066685770,24.02035,2623.3,2623.2,0.76236]
[1750066686470,0.76231,2623.5,2623.4,0.76227]
[1750066686672,30.02531,2623.5,2623.4,0.76227]
[1750066686865,0.76231,2623.5,2623.4,0.76227]
[1750066687066,3.37628652,2623.6,2623.5,0.76227]
[1750066687267,33.5467681,2623.6,2623.5,0.76227]
[1750066687764,0.90748158,2623.6,2623.5,0.76227]
[1750066688074,6.76824,2623.6,2623.5,0.76227]
[1750066691374,0.7623,2623.5,2623.4,0.76228]
[1750066696873,0.7623,2623.4,2623.3,0.6191]
[1750066697065,3.37631652,2623.4,2623.3,0.6191]
[1750066697269,3.37631652,2623.4,2623.3,1.38143]
[1750066698078,0.7623,2623.4,2623.3,1.38143]
[1750066698280,0.76229,2623.5,2623.4,0.76227]
[1750066708478,1.67022476,2623.5,2623.4,0.76227]
[1750066712586,24.92120476,2623.5,2623.4,0.76227]
[1750066713381,27.53522128,2623.5,2623.4,0.76227]
[1750066713878,0.76236,2623.3,2623.2,0.76231]
[1750066714083,26.62737652,2623.3,2623.2,0.76231]
[1750066714389,27.5366174,2623.3,2623.2,0.76231]
[1750066714895,0.76236,2623.2,2623.1,1.42466]
[1750066715481,1.67162739,2623.2,2623.1,1.42466]
[1750066716386,1.67162739,2623.2,2623.1,0.76236]
[1750066716588,2.95222739,2623.2,2623.1,0.76236]
[1750066717091,0.76242,2623.1,2623.0,0.7624]
[1750066717283,27.53670391,2623.1,2623.0,0.7624]
[1750066717479,0.76242,2623.0,2622.9,0.6476]
[1750066717790,0.76245,2622.9,2622.8,0.76817059]
[1750066717985,24.92226304,2622.9,2622.8,0.76817059]
[1750066718179,26.62746652,2622.9,2622.8,0.76817059]
[1750066719083,27.53550964,2622.9,2622.8,0.76817059]
[1750066719285,28.82360964,2622.9,2622.8,0.76817059]
[1750066720189,25.30155,2622.9,2622.8,0.76817059]
[1750066723798,2.05055,2622.9,2622.8,0.76817059]
[1750066723992,30.01845,2622.9,2622.8,0.76817059]
[1750066730100,30.01845,2622.9,2622.8,0.00571059]
[1750066730307,32.63246652,2622.9,2622.8,0.00571059]
[1750066730611,32.63246652,2622.9,2622.8,0.76819059]
[1750066730612,33.85726652,2622.9,2622.8,0.76819059]
[1750066731308,32.63246652,2622.9,2622.8,0.76819059]
[1750066732912,30.01845,2622.9,2622.8,0.76819059]
[1750066733310,32.63246652,2622.9,2622.8,0.76819059]
[1750066734210,32.63246652,2622.9,2622.8,0.00571059]
[1750066734811,33.88086652,2622.9,2622.8,0.00571059]
[1750066735012,1.90624,2622.8,2622.4,0.76259]
[1750066735314,0.76256,2622.5,2622.4,0.76259]
[1750066735513,30.01956,2622.5,2622.4,0.76259]
[1750066736309,0.76259,2622.4,2622.3,0.6504]
[1750066736506,0.76262,2622.3,2622.2,0.00571059]
[1750066736708,26.62963652,2622.3,2622.2,0.00571059]
[1750066736909,28.88013876,2622.3,2622.2,0.00571059]
[1750066739721,26.62963652,2622.3,2622.2,0.76836059]
[1750066739924,26.62963652,2622.3,2622.2,0.00571059]
[1750066740519,26.62963652,2622.3,2622.2,0.76836059]
[1750066741016,3.37663652,2622.3,2622.2,0.76836059]
[1750066741216,32.63563652,2622.3,2622.2,0.76836059]
[1750066742119,3.2078,2622.4,2622.3,0.76262]
[1750066742322,34.13665777,2622.4,2622.3,0.76262]
[1750066743018,30.92885777,2622.4,2622.3,0.76262]
[1750066743925,30.02162,2622.4,2622.3,0.76262]
[1750066744116,30.92917423,2622.4,2622.3,0.76262]
[1750066745126,30.92916442,2622.4,2622.3,0.76262]
[1750066745631,0.76262,2622.3,2622.2,0.76834059]
[1750066745928,6.58443652,2622.3,2622.2,0.00571059]
[1750066746130,5.82181652,2622.3,2622.2,0.76836059]
[1750066746428,31.87301652,2622.4,2622.3,0.76262]
[1750066746627,32.63562652,2622.4,2622.3,0.76262]
[1750066746818,33.54321851,2622.4,2622.3,0.76262]
[1750066747017,33.54321851,2622.4,2622.2,0.76834059]
[1750066747018,0.76262,2622.3,2622.2,0.76834059]
[1750066751026,0.76262,2622.3,2622.2,0.00571059]
[1750066751027,3.97042,2622.3,2622.2,0.00571059]
[1750066751222,4.87809273,2622.3,2622.2,0.00571059]
[1750066752229,6.004,2622.3,2622.2,0.76836059]
[1750066752528,6.76658,2622.5,2622.4,0.76254]
[1750066752726,30.02356,2622.5,2622.4,0.76254]
[1750066754025,0.76259,2622.4,2622.3,1.4303]
[1750066754326,6.58440652,2622.4,2622.3,0.6677]
[1750066754522,6.58440652,2622.4,2622.3,1.43032]
[1750066754723,0.76262,2622.3,2622.2,0.76834059]
[1750066754933,24.01862,2622.3,2622.2,0.76834059]
[1750066755535,24.01862,2622.3,2622.2,0.00571059]
[1750066755833,24.01862,2622.3,2622.2,0.07308465]
[1750066756137,0.76274,2621.9,2621.8,3.2078]
[1750066756435,0.76274,2621.9,2621.7,0.76277]
[1750066756436,0.7628,2621.8,2621.7,0.76277]
[1750066756635,32.63577652,2621.9,2621.8,0.76277]
[1750066759029,0.7628,2621.8,2621.7,0.76278]
[1750066761234,0.7628,2621.7,2621.6,1.40661]
[1750066761541,24.0208,2621.7,2621.6,1.40661]
[1750066763830,6.003,2621.9,2621.6,0.6438]
[1750066764030,0.76274,2622.0,2621.9,0.76271]
[1750066764236,0.76274,2622.0,2621.9,0.76274]
[1750066765933,24.02640059,2622.1,2622.0,0.76271]
[1750066766149,7.91045,2622.5,2621.9,4.52084652]
[1750066766333,26.78312889,2622.4,2621.9,1.2347]
[1750066766534,0.76271,2622.1,2622.0,0.76266]
[1750066766733,0.76267,2622.2,2622.1,0.76265]
[1750066766937,0.76271,2622.1,2622.0,0.76268]
[1750066767447,0.00572159,2622.3,2622.2,0.76265]
[1750066767743,9.2098,2623.0,2622.9,0.76245]
[1750066767934,13.49757422,2623.0,2622.9,0.76245]
[1750066768339,36.75457422,2623.0,2622.9,0.76245]
[1750066768534,34.1405577,2623.0,2622.9,0.76245]
[1750066768838,36.75457422,2623.0,2622.9,0.76245]
[1750066769541,0.76247,2622.9,2622.8,0.76246]
[1750066769738,35.84325652,2623.0,2622.9,0.76245]
[1750066770346,33.22924,2623.0,2622.9,0.76245]
[1750066770538,35.84325652,2623.0,2622.9,0.76245]
[1750066770739,0.76245,2622.9,2622.8,1.43797]
[1750066770940,35.84325652,2623.0,2622.9,0.76245]
[1750066772244,35.84325652,2623.0,2622.8,0.6755]
[1750066772245,0.76245,2622.9,2622.8,0.6755]